bitfinex/quotes_SOLUSD_20240818
["timestamp","ask_amount","ask_price","bid_price","bid_amount"]
[1723945697840,0.25098,141.88,141.85,6.42326856]
[1723945698040,0.12549,141.88,141.84,6.42326856]
[1723945698271,0.12549,141.89,141.84,6.42326856]
[1723945698469,0.37647,141.89,141.85,6.42326856]
[1723945698667,0.37647,141.89,141.84,6.42326856]
[1723945698843,0.37647,141.89,141.85,6.42326856]
[1723945699172,0.12549,141.88,141.84,6.42326856]
[1723945699361,0.25098,141.88,141.82,17.91546726]
[1723945699674,0.25098,141.87,141.82,17.91546726]
[1723945700362,0.25098,141.87,141.82,11.4921987]
[1723945700738,0.12549,141.86,141.82,11.4921987]
[1723945702352,0.12549,141.86,141.82,0.8321987]
[1723945702572,0.12549,141.86,141.82,11.4921987]
[1723945703869,0.25098,141.87,141.84,10.66]
[1723945705253,0.25098,141.87,141.82,0.8321987]
[1723945705481,0.12549,141.88,141.82,11.4921987]
[1723945705661,0.12549,141.91,141.84,10.66]
[1723945706049,0.12549,141.91,141.86,10.66]
[1723945707974,0.50196,141.91,141.86,10.66]
[1723945708175,21.5193,141.92,141.86,10.66]
[1723945709479,0.12549,141.9,141.86,10.66]
[1723945709683,0.25098,141.9,141.86,10.66]
[1723945709857,0.12549,141.89,141.86,10.66]
[1723945710056,0.25098,141.9,141.86,10.66]
[1723945710275,0.12549,141.89,141.86,10.66]
[1723945711268,0.37647,141.89,141.86,10.66]
[1723945713373,42.6993,141.92,141.87,1.40972145]
[1723945713374,21.5193,141.92,141.87,1.40972145]
[1723945713682,0.25098,141.91,141.88,10.66]
[1723945714484,37.1061,141.96,141.89,1.40951722]
[1723945714959,37.1061,141.96,141.88,10.66]
[1723945715777,0.12549,141.94,141.88,10.66]
[1723945716871,0.12549,141.94,141.83,22.278]
[1723945717078,0.12549,141.94,141.87,10.66]
[1723945718056,0.12549,141.94,141.86,10.66]
[1723945718984,0.12549,141.94,141.83,22.278]
[1723945719380,0.12549,141.94,141.85,10.66]
[1723945720069,0.12549,141.94,141.83,15.9432]
[1723945720275,0.12549,141.94,141.85,10.66]
[1723945720795,31.96549,141.94,141.85,10.66]
[1723945720999,0.12549,141.92,141.85,10.66]
[1723945723098,66.55647,141.93,141.83,10.66]
[1723945723099,0.12549,141.9,141.83,10.66]
[1723945723398,45.50196,141.9,141.83,10.66]
[1723945723695,45.50196,141.9,141.82,0.8321987]
[1723945723696,66.68196,141.9,141.82,0.8321987]
[1723945723895,66.68196,141.9,141.82,11.4921987]
[1723945725491,45.50196,141.9,141.82,11.4921987]
[1723945725690,45.50196,141.9,141.84,10.66]
[1723945725887,0.50196,141.9,141.84,10.66]
[1723945726789,0.50196,141.9,141.82,0.8321987]
[1723945726993,45.50196,141.9,141.84,10.66]
[1723945727172,0.50196,141.9,141.84,10.66]
[1723945727691,45.50196,141.9,141.84,10.66]
[1723945727888,45.50196,141.9,141.82,0.8321987]
[1723945728081,45.50196,141.9,141.83,10.66]
[1723945730079,0.50196,141.9,141.83,10.66]
[1723945730603,45.50196,141.9,141.83,10.66]
[1723945736611,0.50196,141.9,141.85,10.66]
[1723945736984,0.50196,141.9,141.83,10.66]
[1723945738497,45.50196,141.9,141.83,10.66]
[1723945741587,45.50196,141.9,141.83,17.084927]
[1723945741800,45.50196,141.9,141.82,0.8321987]
[1723945742125,45.50196,141.9,141.83,10.66]
[1723945742314,77.34196,141.9,141.83,6.42492758]
[1723945742493,77.34196,141.9,141.82,0.8321987]
[1723945742494,77.34196,141.9,141.82,7.25712628]
[1723945742696,77.34196,141.9,141.82,7.25743814]
[1723945742893,77.34196,141.9,141.82,0.8321987]
[1723945743096,31.84,141.88,141.82,0.8321987]
[1723945743312,66.83776,141.87,141.82,0.8321987]
[1723945746609,10.66,141.86,141.82,0.8321987]
[1723945746814,0.50196,141.85,141.82,0.8321987]
[1723945747828,45.50196,141.85,141.82,0.8321987]
[1723945749405,21.18,141.84,141.82,0.8321987]
[1723945749612,0.50196,141.83,141.82,0.8321987]
[1723945749814,0.37647,141.83,141.82,0.8321987]
[1723945750030,0.12549,141.83,141.82,0.8321987]
[1723945754333,0.12549,141.86,141.82,0.8321987]
[1723945754626,0.50196,141.86,141.82,0.8321987]
[1723945756515,0.25098,141.86,141.82,0.8321987]
[1723945759529,0.12549,141.86,141.82,0.8321987]
[1723945759730,0.12549,141.86,141.82,2.24214432]
[1723945760041,0.12549,141.86,141.82,0.8321987]
[1723945761014,0.25098,141.86,141.82,0.8321987]
[1723945761530,0.12549,141.84,141.82,0.8321987]
[1723945761720,0.25098,141.84,141.82,0.8321987]
[1723945765829,0.12549,141.83,141.82,0.8321987]
[1723945766033,0.25098,141.83,141.82,0.8321987]
[1723945768715,0.37647,141.83,141.82,0.8321987]
[1723945768916,0.50196,141.83,141.82,0.8321987]
[1723945779648,0.37647,141.83,141.82,0.8321987]
[1723945779834,0.25098,141.83,141.82,0.8321987]
[1723945781550,0.50196,141.83,141.82,0.8321987]
[1723945787031,0.37647,141.83,141.82,0.8321987]
[1723945787238,0.25098,141.83,141.82,0.8321987]
[1723945790839,0.37647,141.83,141.82,0.8321987]
[1723945791041,0.25098,141.83,141.82,0.8321987]
[1723945792948,18.03187784,141.87,141.82,0.8321987]
[1723945793262,0.50196,141.86,141.82,0.8321987]
[1723945793758,20.32498334,141.89,141.82,0.8321987]
[1723945793970,9.66498334,141.89,141.82,0.8321987]
[1723945794138,20.32498334,141.89,141.82,0.8321987]
[1723945794639,9.66498334,141.89,141.82,0.8321987]
[1723945794846,18.02551966,141.89,141.82,0.8321987]
[1723945795260,0.37647,141.88,141.82,0.8321987]
[1723945795563,0.25098,141.87,141.82,0.8321987]
[1723945795862,0.25098,141.86,141.82,0.8321987]
[1723945796834,0.12549,141.85,141.82,0.8321987]
[1723945797046,0.25098,141.85,141.82,0.8321987]
[1723945797364,0.25098,141.84,141.82,0.8321987]
[1723945801141,10.78549,141.87,141.82,11.4921987]
[1723945801341,10.66,141.92,141.82,11.4921987]
[1723945801579,10.66,141.92,141.84,10.66]
[1723945801580,10.78549,141.91,141.84,10.66]
[1723945801948,10.78549,141.91,141.85,1.40974446]
[1723945802139,10.78549,141.91,141.84,10.66]
[1723945802661,0.12549,141.9,141.84,10.66]
[1723945802846,10.78549,141.91,141.84,10.66]
[1723945803055,43.59700863,141.93,141.85,15.3857]
[1723945803056,28.57670863,141.93,141.85,15.3857]
[1723945803463,31.87,141.93,141.85,26.0457]
[1723945804267,0.12549,141.92,141.85,26.0457]
[1723945804466,10.78549,141.92,141.85,15.3857]
[1723945804675,0.12549,141.9,141.85,15.3857]
[1723945804851,0.25098,141.9,141.85,15.3857]
[1723945805046,0.12549,141.89,141.85,15.3857]
[1723945805370,0.37647,141.89,141.85,15.3857]
[1723945809871,0.37647,141.89,141.85,26.0457]
[1723945810052,3.5231,141.92,141.85,26.0457]
[1723945810252,14.1829,141.93,141.85,26.0457]
[1723945810771,21.21,141.97,141.89,10.66]
[1723945810971,3.5221,141.96,141.9,16.1181]
[1723945811556,3.5221,141.96,141.9,17.52732759]
[1723945812576,3.5221,141.96,141.91,10.66]
[1723945812752,3.5221,141.96,141.91,12.06913418]
[1723945813680,0.12549,141.95,141.91,12.06913418]
[1723945813851,0.50196,141.95,141.9,16.1181]
[1723945815980,4.02426,141.95,141.9,16.1181]
[1723945821277,0.50196,141.95,141.9,16.1181]
[1723945821485,0.50196,141.95,141.9,17.52725736]
[1723945822169,0.50196,141.95,141.91,1.40915001]
[1723945822364,0.50196,141.95,141.9,16.1181]
[1723945822758,0.50196,141.95,141.91,1.4091625]
[1723945823065,7.36056412,141.99,141.93,10.66]
[1723945823270,21.21,142.01,141.93,10.66]
[1723945823469,3.5213,141.99,141.93,16.6647]
[1723945823670,3.5213,141.99,141.94,1.40889599]
[1723945824178,3.5213,141.99,141.93,16.6647]
[1723945824587,3.5213,141.99,141.93,6.0047]
[1723945824967,0.12549,141.98,141.93,6.0047]
[1723945825160,0.25098,141.98,141.93,6.0047]
[1723945825375,0.37647,141.98,141.93,7.41359133]
[1723945828120,0.37647,141.98,141.93,6.0047]
[1723945828589,0.37647,141.98,141.93,7.41359659]
[1723945829077,0.25098,141.98,141.94,26.8356]
[1723945829277,7.35755647,142.02,141.96,10.66]
[1723945829594,16.1181,142.04,141.96,10.66]
[1723945829773,16.1554389,142.05,141.96,10.66]
[1723945830085,10.66,142.03,141.96,10.66]
[1723945830987,3.64609,142.02,141.96,10.66]
[1723945831880,0.25098,142.01,141.96,10.66]
[1723945832774,0.25098,142.01,141.94,16.1756]
[1723945832969,0.25098,142.0,141.94,26.8356]
[1723945833304,0.12549,141.99,141.94,16.1756]
[1723945833467,0.25098,141.99,141.94,16.1756]
[1723945833673,0.12549,141.98,141.94,16.1756]
[1723945835392,0.12549,142.02,141.95,10.66]
[1723945835570,10.66,142.03,141.97,10.66]
[1723945835762,3.5206,142.02,141.98,16.1756]
[1723945835970,18.0155389,142.05,141.98,16.1756]
[1723945836668,18.0155389,142.05,141.98,22.4972]
[1723945836886,3.5204,142.03,141.98,22.4972]
[1723945838295,0.12549,142.02,141.98,22.4972]
[1723945838994,0.25098,142.02,141.98,22.4972]
[1723945840181,0.25098,142.01,141.98,22.4972]
[1723945840388,0.25098,142.0,141.98,22.4972]
[1723945840971,28.5655389,142.05,141.98,22.4972]
[1723945840972,18.0155389,142.05,141.98,22.4972]
[1723945841201,3.5206,142.02,141.98,22.4972]
[1723945841591,3.5204,142.03,141.98,22.4972]
[1723945841898,0.37647,142.02,141.98,22.4972]
[1723945844288,0.12549,142.02,141.98,22.4972]
[1723945844594,3.5204,142.03,141.98,33.1572]
[1723945849520,3.5206,142.02,141.98,22.4972]
[1723945849701,0.12549,142.01,141.98,22.4972]
[1723945849885,3.5206,142.02,141.98,22.4972]
[1723945852111,0.12549,142.03,141.98,22.4972]
[1723945852112,3.5208,142.01,141.98,22.4972]
[1723945852319,3.5208,142.01,141.98,16.1756]
[1723945852822,3.5211,142.0,141.98,16.1756]
[1723945853143,3.5213,141.99,141.98,16.1756]
[1723945853321,0.50196,141.99,141.98,16.1756]
[1723945853520,4.02326,141.99,141.98,16.1756]
[1723945856503,0.37647,141.99,141.98,16.1756]
[1723945856709,0.25098,141.99,141.98,16.1756]
[1723945856912,7.0422,142.0,141.98,16.1756]
[1723945857310,0.12549,141.99,141.98,16.1756]
[1723945858115,7.0422,142.0,141.98,16.1756]
[1723945859822,3.5213,141.99,141.98,16.1756]
[1723945860007,0.12549,141.99,141.98,16.1756]
[1723945860337,7.0422,142.0,141.98,16.1756]
[1723945860805,0.37647,141.99,141.98,16.1756]
[1723945861010,0.12549,141.99,141.98,16.1756]
[1723945861204,7.0422,142.0,141.98,16.1756]
[1723945862023,0.50196,141.99,141.95,6.0186]
[1723945862229,3.5219,141.97,141.94,16.2119]
[1723945862415,0.12549,141.96,141.94,16.2119]
[1723945863639,0.37647,141.97,141.94,16.2119]
[1723945864812,3.89837,141.97,141.94,16.2119]
[1723945870044,3.5222,141.96,141.94,16.2119]
[1723945870342,0.12549,141.95,141.92,6.0186]
[1723945870842,0.12549,141.96,141.92,6.0186]
[1723945870843,0.25098,141.96,141.92,6.0186]
[1723945878256,0.25098,141.96,141.91,16.6006]
[1723945878257,0.12549,141.95,141.91,16.6006]
[1723945878454,0.12549,141.94,141.91,16.6006]
[1723945878646,0.37647,141.94,141.91,16.6006]
[1723945879720,0.37647,141.94,141.88,17.199]
[1723945879721,0.12549,141.93,141.88,6.539]
[1723945880018,0.37647,141.93,141.88,6.539]
[1723945880430,0.12549,141.93,141.88,6.539]
[1723945881940,3.89927,141.93,141.87,16.6006]
[1723945882451,0.12549,141.92,141.87,16.6006]
[1723945882629,0.50196,141.92,141.87,16.6006]
[1723945883029,3.5233,141.91,141.87,16.6006]
[1723945883335,0.12549,141.9,141.87,16.6006]
[1723945883521,0.37647,141.9,141.87,16.6006]
[1723945884846,0.12549,141.92,141.87,16.6006]
[1723945885150,66.21,141.96,141.87,16.6006]
[1723945885151,17.0172,141.99,141.9,10.66]
[1723945885665,41.83507848,141.98,141.9,10.66]
[1723945885947,3.5224,141.95,141.9,10.66]
[1723945886531,0.50196,141.94,141.9,10.66]
[1723945888749,0.50196,141.94,141.88,10.66]
[1723945891842,0.00196,141.94,141.88,10.66]
[1723945892042,0.12549,141.94,141.88,10.66]
[1723945892239,0.12549,141.95,141.9,10.66]
[1723945892434,3.5219,141.97,141.9,10.66]
[1723945892639,3.5221,141.96,141.9,10.66]
[1723945893856,0.12549,141.95,141.9,10.66]
[1723945894651,0.25098,141.95,141.9,10.66]
[1723945894958,0.37647,141.95,141.88,10.66]
[1723945898866,0.25098,141.95,141.9,10.66]
[1723945899044,0.25098,141.95,141.91,1.40915324]
[1723945899248,0.25098,141.95,141.9,10.66]
[1723945900074,0.25098,141.95,141.91,1.40911062]
[1723945901563,0.25098,141.95,141.9,10.66]
[1723945905252,3.77328,141.95,141.87,16.6006]
[1723945905470,3.77328,141.95,141.88,10.66]
[1723945906967,0.12549,141.95,141.9,10.66]
[1723945907174,33.03067848,141.98,141.9,10.66]
[1723945907175,0.12549,141.97,141.9,10.66]
[1723945907374,0.50196,141.97,141.9,10.66]
[1723945907947,4.02386,141.97,141.9,10.66]
[1723945909766,4.02386,141.97,141.91,1.4090489]
[1723945910741,4.02386,141.97,141.9,10.66]
[1723945913275,3.5221,141.96,141.9,10.66]
[1723945914071,0.12549,141.95,141.88,17.08211037]
[1723945914281,0.50196,141.95,141.88,17.08211037]
[1723945914967,0.50196,141.95,141.88,10.66]
[1723945915151,0.50196,141.95,141.88,17.08211037]
[1723945918666,0.37647,141.95,141.88,17.08211037]
[1723945918969,0.25098,141.95,141.9,10.66]
[1723945919171,0.25098,141.95,141.91,1.40907512]
[1723945919362,0.25098,141.95,141.9,10.66]
[1723945921078,3.77338,141.95,141.9,10.66]
[1723945921391,15.14579,141.93,141.84,16.1409]
[1723945921680,3.5235,141.91,141.84,33.22338629]
[1723945921881,3.5235,141.91,141.84,26.8009]
[1723945922097,0.12549,141.9,141.84,26.8009]
[1723945922662,0.25098,141.9,141.82,7.25468499]
[1723945922998,0.25098,141.9,141.83,10.66]
[1723945922999,0.12549,141.89,141.83,10.66]
[1723945923172,0.37647,141.89,141.83,10.66]
[1723945924068,0.12549,141.88,141.83,10.66]
[1723945926591,0.25098,141.88,141.82,0.8321987]
[1723945926889,0.25098,141.88,141.83,10.66]
[1723945928892,0.25098,141.88,141.85,3.5248]
[1723945944304,0.25098,141.88,141.84,3.525]
[1723945945390,4.02576,141.88,141.84,3.525]
[1723945946081,0.25098,141.88,141.84,3.525]
[1723945949278,0.25098,141.88,141.84,1.40990677]
[1723945949499,0.12549,141.88,141.86,3.5245]
[1723945949706,0.25098,141.88,141.86,3.5245]
[1723945950797,0.12549,141.89,141.86,3.5245]
[1723945950998,6.1831,141.9,141.86,3.5245]
[1723945953218,0.25098,141.89,141.82,0.8321987]
[1723945953384,0.12549,141.88,141.83,10.66]
[1723945955384,0.25098,141.88,141.83,10.66]
[1723945955785,0.25098,141.88,141.85,3.5248]
[1723945956527,0.12549,141.88,141.86,3.5245]
[1723945956817,0.12549,141.88,141.85,3.5248]
[1723945959095,0.12549,141.88,141.83,10.66]
[1723945959302,0.25098,141.89,141.83,10.66]
[1723945960094,0.25098,141.89,141.84,1.40975067]
[1723945961127,0.25098,141.89,141.83,10.66]
[1723945963235,0.12549,141.88,141.83,10.66]
[1723945964104,0.12549,141.88,141.83,17.08494047]
[1723945965309,0.12549,141.88,141.84,6.42494047]
[1723945965921,0.12549,141.88,141.83,10.66]
[1723945966136,0.12549,141.88,141.84,6.42493293]
[1723945966307,0.12549,141.88,141.83,10.66]
[1723945966505,0.12549,141.88,141.84,6.42493293]
[1723945966828,0.25098,141.89,141.84,6.42493293]
[1723945967015,0.25098,141.89,141.84,6.42496997]
[1723945967719,0.25098,141.89,141.83,10.66]
[1723945968028,0.25098,141.89,141.84,6.42497242]
[1723945968208,0.12549,141.88,141.83,10.66]
[1723945968409,0.12549,141.88,141.84,6.42497486]
[1723945968619,0.12549,141.88,141.83,10.66]
[1723945968815,0.12549,141.88,141.84,6.42493802]
[1723945969027,0.12549,141.88,141.83,10.66]
[1723945969209,0.12549,141.88,141.84,6.42494047]
[1723945969411,0.12549,141.88,141.83,10.66]
[1723945969611,0.12549,141.88,141.84,6.42494047]
[1723945969827,0.12549,141.88,141.83,10.66]
[1723945970129,0.12549,141.88,141.84,6.42493802]
[1723945970322,0.12549,141.88,141.83,10.66]
[1723945970626,0.12549,141.88,141.84,6.42497486]
[1723945970804,0.12549,141.88,141.83,10.66]
[1723945970998,0.12549,141.88,141.84,7.8347294]
[1723945971202,0.25098,141.89,141.83,10.66]
[1723945971429,0.25098,141.89,141.84,6.42487774]
[1723945971628,0.25098,141.89,141.83,10.66]
[1723945971806,0.25098,141.89,141.84,6.42491213]
[1723945972003,0.25098,141.89,141.83,10.66]
[1723945972211,0.25098,141.89,141.84,6.42489811]
[1723945972408,0.25098,141.89,141.83,10.66]
[1723945972623,0.25098,141.89,141.84,6.42489566]
[1723945972823,0.25098,141.89,141.83,10.66]
[1723945973129,0.25098,141.89,141.84,6.42490968]
[1723945973318,0.25098,141.89,141.83,10.66]
[1723945973517,0.25098,141.89,141.84,6.42490968]
[1723945973712,0.25098,141.89,141.83,10.66]
[1723945973916,0.25098,141.89,141.84,6.42491213]
[1723945974116,0.25098,141.89,141.83,10.66]
[1723945974312,0.25098,141.89,141.84,6.42490968]
[1723945974512,0.25098,141.89,141.83,10.66]
[1723945974819,0.25098,141.89,141.84,6.42487529]
[1723945975024,0.25098,141.89,141.83,10.66]
[1723945975211,0.25098,141.89,141.84,6.42487774]
[1723945975416,0.25098,141.89,141.83,10.66]
[1723945975604,0.25098,141.89,141.84,6.42491213]
[1723945975809,0.25098,141.89,141.83,10.66]
[1723945976008,0.25098,141.89,141.84,6.42490968]
[1723945976009,0.12549,141.89,141.84,6.42490968]
[1723945976210,0.37647,141.89,141.83,10.66]
[1723945976411,0.37647,141.89,141.84,6.42491213]
[1723945976619,0.37647,141.89,141.83,10.66]
[1723945976817,0.37647,141.89,141.84,6.4249046]
[1723945977015,0.37647,141.89,141.83,10.66]
[1723945977226,0.37647,141.89,141.84,6.4248702]
[1723945977428,0.37647,141.89,141.83,10.66]
[1723945977736,0.37647,141.89,141.84,6.42487529]
[1723945977939,0.37647,141.89,141.83,10.66]
[1723945978107,0.37647,141.89,141.84,6.42491213]
[1723945978311,0.37647,141.89,141.83,10.66]
[1723945978511,0.12549,141.89,141.84,6.42491213]
[1723945978708,9.7067,141.9,141.83,10.66]
[1723945978939,9.7067,141.9,141.84,6.42490968]
[1723945979108,9.7067,141.9,141.83,10.66]
[1723945979308,9.7067,141.9,141.84,6.42483128]
[1723945979520,9.7067,141.9,141.83,10.66]
[1723945979723,9.7067,141.9,141.84,6.42483128]
[1723945979922,9.7067,141.9,141.83,10.66]
[1723945980121,9.7067,141.9,141.84,6.42487284]
[1723945980331,9.7067,141.9,141.83,10.66]
[1723945980647,9.7067,141.9,141.84,6.42487284]
[1723945980949,3.77478,141.89,141.83,6.42545714]
[1723945981128,0.25098,141.88,141.82,0.8321987]
[1723945981320,0.25098,141.88,141.83,6.42541649]
[1723945981519,0.25098,141.88,141.82,11.4921987]
[1723945981740,0.25098,141.88,141.83,6.42541649]
[1723945981934,0.25098,141.88,141.83,6.42552478]
[1723945982247,0.25098,141.88,141.82,11.4921987]
[1723945982444,0.25098,141.88,141.83,6.42549038]
[1723945982620,0.25098,141.88,141.82,11.4921987]
[1723945982821,0.25098,141.88,141.83,6.42549038]
[1723945983122,0.25098,141.88,141.83,6.42552478]
[1723945983732,0.25098,141.88,141.82,11.4921987]
[1723945984050,0.25098,141.88,141.83,6.42552478]
[1723945984646,0.25098,141.88,141.82,11.4921987]
[1723945984836,0.25098,141.88,141.83,6.42549283]
[1723945985144,0.25098,141.88,141.82,11.4921987]
[1723945985461,0.25098,141.88,141.83,6.42549042]
[1723945985773,0.12549,141.87,141.83,6.42558512]
[1723945985918,0.25098,141.87,141.82,0.8321987]
[1723945986429,0.25098,141.86,141.82,0.8321987]
[1723945986845,0.25098,141.86,141.82,4.3576987]
[1723945992936,0.25098,141.86,141.82,0.8321987]
[1723945994430,0.12549,141.86,141.82,11.4921987]
[1723945994631,0.25098,141.87,141.83,1.40994513]
[1723945994823,0.25098,141.87,141.82,11.4921987]
[1723946005542,3.77528,141.87,141.82,0.8321987]
[1723946005743,0.25098,141.86,141.82,0.8321987]
[1723946009050,0.12549,141.85,141.82,0.8321987]
[1723946009367,0.25098,141.85,141.82,0.8321987]
[1723946009562,0.12549,141.84,141.82,0.8321987]
[1723946009950,0.12549,141.84,141.82,4.3574987]
[1723946012355,0.12549,141.84,141.82,0.8321987]
[1723946012548,0.37647,141.84,141.82,0.8321987]
[1723946014465,0.12549,141.84,141.82,0.8321987]
[1723946014668,0.50196,141.85,141.82,0.8321987]
[1723946016173,0.12549,141.83,141.82,0.8321987]
[1723946016372,0.50196,141.83,141.82,0.8321987]
[1723946017160,45.50196,141.83,141.82,0.8321987]
[1723946017374,0.50196,141.83,141.82,0.8321987]
[1723946018266,0.37647,141.83,141.82,0.8321987]
[1723946018583,0.25098,141.83,141.82,0.8321987]
[1723946018759,0.12549,141.84,141.82,0.8321987]
[1723946018967,0.25098,141.84,141.82,0.8321987]
[1723946019272,0.37647,141.84,141.82,0.8321987]
[1723946020987,0.12549,141.83,141.82,0.8321987]
[1723946026360,0.37647,141.83,141.82,0.8321987]
[1723946026565,0.50196,141.83,141.82,0.8321987]
[1723946030288,3.65039,141.85,141.82,0.8321987]
[1723946030592,0.50196,141.84,141.82,0.8321987]
[1723946035570,4.02706,141.84,141.82,0.8321987]
[1723946044091,0.50196,141.84,141.82,0.8321987]
[1723946046479,7.33285771,141.87,141.83,3.5251]
[1723946046682,3.5243,141.88,141.83,3.5251]
[1723946047404,3.5243,141.88,141.83,18.8314]
[1723946048090,0.12549,141.87,141.83,18.8314]
[1723946048291,0.37647,141.87,141.83,18.8314]
[1723946053494,0.12549,141.88,141.84,7.90626459]
[1723946053688,0.25098,141.88,141.84,6.4963]
[1723946055690,0.25098,141.87,141.83,15.3063]
[1723946056094,0.12549,141.87,141.83,15.3063]
[1723946057208,0.50196,141.88,141.83,15.3063]
[1723946057508,0.37647,141.88,141.83,25.9663]
[1723946057712,0.25098,141.88,141.83,25.9663]
[1723946058009,0.12549,141.88,141.84,1.40830707]
[1723946058312,0.25098,141.89,141.85,10.66]
[1723946060609,0.25098,141.89,141.84,6.4963]
[1723946064004,0.12549,141.89,141.85,1.40974388]
[1723946064207,0.25098,141.9,141.85,1.40974388]
[1723946064911,0.25098,141.9,141.84,6.4963]
[1723946067793,0.12549,141.89,141.84,6.4963]
[1723946067997,0.37647,141.89,141.84,6.4963]
[1723946073812,0.12549,141.88,141.84,6.4963]
[1723946074797,0.25098,141.88,141.84,6.4963]
[1723946082104,7.42457,141.87,141.83,15.3063]
[1723946082728,0.37647,141.86,141.82,0.8321987]
[1723946083133,0.12549,141.85,141.82,0.8321987]
[1723946084227,0.12549,141.84,141.82,0.8321987]
[1723946084405,0.25098,141.84,141.82,0.8321987]
[1723946084608,0.37647,141.83,141.82,0.8321987]
[1723946084802,0.50196,141.83,141.82,0.8321987]
[1723946091524,3.5249,141.85,141.82,0.8321987]
[1723946091735,0.37647,141.86,141.82,0.8321987]
[1723946091946,0.37647,141.85,141.82,0.8321987]
[1723946101231,0.12549,141.84,141.82,0.8321987]
[1723946101547,10.97617766,141.84,141.82,0.8321987]
[1723946101751,0.50196,141.83,141.82,0.8321987]
[1723946102049,49.02726,141.83,141.82,0.8321987]
[1723946102453,70.23726,141.83,141.82,0.8321987]
[1723946103962,0.12549,141.82,141.75,15.8294]
[1723946104333,10.66,141.79,141.75,15.8294]
[1723946104529,0.50196,141.78,141.75,15.8294]
[1723946104937,3.5268,141.77,141.75,15.8294]
[1723946105333,0.12549,141.76,141.75,15.8294]
[1723946105530,0.12549,141.76,141.75,14.8294]
[1723946105755,3.90307,141.78,141.75,14.8294]
[1723946105756,0.12549,141.77,141.75,14.8294]
[1723946105961,3.90307,141.78,141.75,14.8294]
[1723946106550,0.37647,141.78,141.75,14.8294]
[1723946107143,0.12549,141.77,141.75,14.8294]
[1723946107866,0.25098,141.77,141.75,14.8294]
[1723946108847,3.77798,141.77,141.75,14.8294]
[1723946109141,3.77798,141.77,141.72,3.5278]
[1723946109349,0.25098,141.76,141.72,3.5278]
[1723946113644,3.77798,141.77,141.72,3.5278]
[1723946113847,3.77798,141.77,141.73,4.93873036]
[1723946115077,3.77798,141.77,141.72,3.528]
[1723946119079,0.25098,141.77,141.73,3.5277]
[1723946119578,3.77778,141.77,141.73,3.5277]
[1723946119777,3.77778,141.77,141.72,3.528]
[1723946121677,3.527,141.76,141.71,19.9854]
[1723946121986,0.12549,141.75,141.71,19.9854]
[1723946122681,0.12549,141.76,141.71,16.4572]
[1723946122992,3.65259,141.76,141.71,19.9854]
[1723946123655,3.5273,141.75,141.71,19.9854]
[1723946124377,3.5275,141.74,141.69,3.5285]
[1723946125381,3.5275,141.74,141.7,3.5285]
[1723946126385,3.65299,141.75,141.7,3.5285]
[1723946126386,7.18029,141.75,141.7,3.5285]
[1723946126561,0.12549,141.74,141.7,3.5285]
[1723946127176,0.12549,141.73,141.69,3.5287]
[1723946127385,0.25098,141.73,141.69,3.5287]
[1723946127891,0.25098,141.73,141.68,0.8321987]
[1723946127892,10.91098,141.73,141.68,0.8321987]
[1723946128187,0.12549,141.71,141.68,0.8321987]
[1723946128367,0.25098,141.71,141.68,0.8321987]
[1723946128577,0.12549,141.7,141.68,0.8321987]
[1723946129062,3.65409,141.7,141.68,0.8321987]
[1723946130056,3.65379,141.71,141.68,0.8321987]
[1723946130262,3.5283,141.71,141.68,0.8321987]
[1723946135287,3.65409,141.7,141.68,0.8321987]
[1723946140297,0.12549,141.7,141.68,0.8321987]